[Event "FIDE World Rapid Chess Championship 2021"]
[White "Gumularz, Szymon"]
[Black "Adly, Ahmed"]
[WhiteFideId "1188062"]
[BlackFideId "10601619"]
[WhiteElo "2452"]
[BlackElo "2597"]
[Result "1/2-1/2"]
[Round "13"]
[TimeControl "900+10"]
[Date "2021.12.28"]
[WhiteClock "0:00:49"]
[BlackClock "0:02:51"]

1. e4 {[%clk 0:15:00]}  e6 {[%clk 0:15:00]} 2. d4 {[%clk 0:15:00]}  d5 {[%clk 0:15:00]} 3. Nd2 {[%clk 0:15:00]}  dxe4 {[%clk 0:15:00]} 4. Nxe4 {[%clk 0:15:00]}  Bd7 {[%clk 0:15:00]} 5. Nf3 {[%clk 0:16:12]}  Bc6 {[%clk 0:15:56]} 6. Bd3 {[%clk 0:16:12]}  Nd7 {[%clk 0:15:56]} 7. O-O {[%clk 0:16:12]}  Ngf6 {[%clk 0:15:56]} 8. Ng3 {[%clk 0:16:12]}  g6 {[%clk 0:15:56]} 9. Qe2 {[%clk 0:16:12]}  Bg7 {[%clk 0:15:56]} 10. Rd1 {[%clk 0:16:12]}  O-O {[%clk 0:15:56]} 11. Ne5 {[%clk 0:16:12]}  Nxe5 {[%clk 0:15:56]} 12. dxe5 {[%clk 0:16:12]}  Nd7 {[%clk 0:15:56]} 13. Bb5 {[%clk 0:16:12]}  Qe7 {[%clk 0:15:57]} 14. Bxc6 {[%clk 0:15:05]}  bxc6 {[%clk 0:15:57]} 15. f4 {[%clk 0:15:05]}  Nb6 {[%clk 0:15:57]} 16. Ne4 {[%clk 0:15:05]}  Rfd8 {[%clk 0:15:57]} 17. Rxd8+ {[%clk 0:14:57]}  Rxd8 {[%clk 0:14:44]} 18. b3 {[%clk 0:14:57]}  Nd5 {[%clk 0:13:10]} 19. c4 {[%clk 0:12:59]}  Qb4 {[%clk 0:13:10]} 20. Bd2 {[%clk 0:12:59]}  Qb6+ {[%clk 0:13:10]} 21. Qf2 {[%clk 0:12:52]}  Ne7 {[%clk 0:13:09]} 22. Be3 {[%clk 0:12:52]}  Qa5 {[%clk 0:13:09]} 23. Bxa7 {[%clk 0:12:52]}  Nf5 {[%clk 0:13:09]} 24. Bc5 {[%clk 0:12:52]}  h5 {[%clk 0:13:09]} 25. g3 {[%clk 0:12:52]}  Nh6 {[%clk 0:13:09]} 26. Qe2 {[%clk 0:12:52]}  Bf8 {[%clk 0:13:09]} 27. Nf6+ {[%clk 0:12:52]}  Kg7 {[%clk 0:13:09]} 28. Bxf8+ {[%clk 0:12:52]}  Kxf8 {[%clk 0:13:09]} 29. Rd1 {[%clk 0:12:52]}  Qa7+ {[%clk 0:09:16]} 30. Kf1 {[%clk 0:04:03]}  Rxd1+ {[%clk 0:09:16]} 31. Qxd1 {[%clk 0:04:03]}  Qxa2 {[%clk 0:09:16]} 32. Qd8+ {[%clk 0:04:03]}  Kg7 {[%clk 0:09:16]} 33. Ne8+ {[%clk 0:04:03]}  Kh7 {[%clk 0:09:16]} 34. Qf6 {[%clk 0:02:34]}  Qb1+ {[%clk 0:07:52]} 35. Kg2 {[%clk 0:02:34]}  Qc2+ {[%clk 0:07:52]} 36. Kh3 {[%clk 0:02:34]}  Qf5+ {[%clk 0:07:52]} 37. Qxf5 {[%clk 0:02:34]}  Nxf5 {[%clk 0:07:52]} 38. Nxc7 {[%clk 0:02:34]}  Kg7 {[%clk 0:07:52]} 39. Na6 {[%clk 0:03:01]}  Nd4 {[%clk 0:06:37]} 40. Nc5 {[%clk 0:03:01]}  g5 {[%clk 0:06:37]} 41. Kg2 {[%clk 0:03:01]}  gxf4 {[%clk 0:06:01]} 42. gxf4 {[%clk 0:00:59]}  Kg6 {[%clk 0:06:01]} 43. Kf2 {[%clk 0:00:59]}  Kf5 {[%clk 0:06:01]} 44. Ke3 {[%clk 0:00:59]}  Nc2+ {[%clk 0:06:01]} 45. Kd2 {[%clk 0:00:59]}  Nd4 {[%clk 0:06:01]} 46. Ke3 {[%clk 0:00:59]}  Nc2+ {[%clk 0:06:01]} 47. Kd2 {[%clk 0:00:59]}  Nd4 {[%clk 0:06:01]} 48. Ke3 {[%clk 0:00:51]}  Nc2+ {[%clk 0:04:40]} 49. Kd2 {[%clk 0:00:51]}  Nd4 {[%clk 0:04:40]} 50. Ke3 {[%clk 0:00:51]}  Nc2+ {[%clk 0:02:51]} 51. Kd2 {[%clk 0:00:49]} 1/2-1/2


[Site "http://www.Chess.com"]

[Event "FIDE World Rapid Chess Championship 2021"]
[White "Kosakowski, Jakub"]
[Black "Timofeev, Artyom"]
[WhiteFideId "1185080"]
[BlackFideId "4140419"]
[WhiteElo "2304"]
[BlackElo "2591"]
[Result "1/2-1/2"]
[Round "13"]
[TimeControl "900+10"]
[Date "2021.12.28"]
[WhiteClock "0:01:26"]
[BlackClock "0:04:35"]

1. e4 {[%clk 0:15:00]}  c5 {[%clk 0:15:00]} 2. Nf3 {[%clk 0:15:00]}  Nc6 {[%clk 0:15:00]} 3. d4 {[%clk 0:15:00]}  cxd4 {[%clk 0:15:00]} 4. Nxd4 {[%clk 0:15:00]}  e5 {[%clk 0:15:00]} 5. Nb5 {[%clk 0:15:54]}  a6 {[%clk 0:16:04]} 6. Nd6+ {[%clk 0:15:54]}  Bxd6 {[%clk 0:16:04]} 7. Qxd6 {[%clk 0:15:54]}  Qe7 {[%clk 0:16:04]} 8. Qd1 {[%clk 0:15:54]}  Nf6 {[%clk 0:16:04]} 9. Nc3 {[%clk 0:15:54]}  d6 {[%clk 0:16:04]} 10. Be2 {[%clk 0:14:01]}  O-O {[%clk 0:16:10]} 11. O-O {[%clk 0:14:01]}  h6 {[%clk 0:15:31]} 12. f4 {[%clk 0:11:32]}  Nd4 {[%clk 0:15:31]} 13. Bd3 {[%clk 0:10:03]}  b5 {[%clk 0:14:13]} 14. Qe1 {[%clk 0:10:03]}  Bb7 {[%clk 0:14:13]} 15. a3 {[%clk 0:10:03]}  Rac8 {[%clk 0:12:52]} 16. fxe5 {[%clk 0:09:11]}  dxe5 {[%clk 0:12:52]} 17. Qh4 {[%clk 0:09:11]}  Nd5 {[%clk 0:12:52]} 18. Qg4 {[%clk 0:08:22]}  Nf6 {[%clk 0:11:33]} 19. Qh4 {[%clk 0:08:22]}  Nd5 {[%clk 0:11:33]} 20. Qg4 {[%clk 0:08:22]}  Nxc3 {[%clk 0:11:33]} 21. bxc3 {[%clk 0:08:22]}  Qe6 {[%clk 0:11:33]} 22. Qxe6 {[%clk 0:07:36]}  Nxe6 {[%clk 0:11:21]} 23. a4 {[%clk 0:07:36]}  bxa4 {[%clk 0:11:21]} 24. Rxa4 {[%clk 0:07:36]}  Nc5 {[%clk 0:10:24]} 25. Rb4 {[%clk 0:06:01]}  a5 {[%clk 0:08:03]} 26. Rb5 {[%clk 0:05:32]}  Nxd3 {[%clk 0:08:03]} 27. cxd3 {[%clk 0:05:32]}  Ba6 {[%clk 0:08:03]} 28. Rxa5 {[%clk 0:05:32]}  Bxd3 {[%clk 0:08:03]} 29. Rd1 {[%clk 0:05:32]}  Bc2 {[%clk 0:08:03]} 30. Rd2 {[%clk 0:03:50]}  Bxe4 {[%clk 0:08:07]} 31. Rxe5 {[%clk 0:02:04]}  Rxc3 {[%clk 0:08:07]} 32. Bb2 {[%clk 0:02:04]}  Rc4 {[%clk 0:08:07]} 33. Re2 {[%clk 0:02:04]}  Bc6 {[%clk 0:08:07]} 34. R5e3 {[%clk 0:02:04]}  Rg4 {[%clk 0:05:59]} 35. h3 {[%clk 0:01:38]}  Rg6 {[%clk 0:05:59]} 36. Kh2 {[%clk 0:01:38]}  Rd8 {[%clk 0:05:59]} 37. Rg3 {[%clk 0:01:38]}  Kh7 {[%clk 0:05:59]} 38. Rxg6 {[%clk 0:01:38]}  Kxg6 {[%clk 0:05:59]} 39. Re3 {[%clk 0:01:38]}  f6 {[%clk 0:05:59]} 40. Bc3 {[%clk 0:01:38]}  Ra8 {[%clk 0:05:59]} 41. Re2 {[%clk 0:01:38]}  Ra4 {[%clk 0:05:59]} 42. Rf2 {[%clk 0:01:38]}  Rc4 {[%clk 0:05:39]} 43. Bb2 {[%clk 0:01:36]}  Kf7 {[%clk 0:05:39]} 44. Kg3 {[%clk 0:01:36]}  Be4 {[%clk 0:05:39]} 45. Rd2 {[%clk 0:01:36]}  Rb4 {[%clk 0:05:39]} 46. Kf2 {[%clk 0:01:36]}  Rb3 {[%clk 0:05:39]} 47. Bd4 {[%clk 0:01:36]}  g5 {[%clk 0:05:04]} 48. Ra2 {[%clk 0:01:05]}  Rd3 {[%clk 0:05:04]} 49. Bc5 {[%clk 0:01:05]}  Bd5 {[%clk 0:05:04]} 50. Ra7+ {[%clk 0:01:05]}  Kg6 {[%clk 0:05:04]} 51. Rd7 {[%clk 0:00:22]}  Kf5 {[%clk 0:03:38]} 52. Ke2 {[%clk 0:00:22]}  Bc4 {[%clk 0:03:38]} 53. Rxd3 {[%clk 0:00:22]}  Ke4 {[%clk 0:03:38]} 54. Kf2 {[%clk 0:00:22]}  Bxd3 {[%clk 0:03:38]} 55. Bf8 {[%clk 0:00:22]}  h5 {[%clk 0:03:38]} 56. Be7 {[%clk 0:00:22]}  Kf5 {[%clk 0:03:38]} 57. Bd8 {[%clk 0:00:22]}  Ke6 {[%clk 0:03:38]} 58. Ke3 {[%clk 0:00:22]}  Bb5 {[%clk 0:03:38]} 59. Kf2 {[%clk 0:00:22]}  Kf5 {[%clk 0:03:38]} 60. Be7 {[%clk 0:00:22]}  Kg6 {[%clk 0:03:38]} 61. Bd8 {[%clk 0:00:22]}  Bd7 {[%clk 0:03:38]} 62. Be7 {[%clk 0:00:22]}  h4 {[%clk 0:03:38]} 63. Bd8 {[%clk 0:00:22]}  f5 {[%clk 0:03:38]} 64. Be7 {[%clk 0:00:22]}  Kh5 {[%clk 0:04:35]} 65. Bd8 {[%clk 0:01:26]}  Bc6 {[%clk 0:04:35]} 66. Be7 {[%clk 0:01:26]}  g4 {[%clk 0:04:35]} 67. hxg4+ {[%clk 0:01:26]}  fxg4 {[%clk 0:04:35]} 68. g3 {[%clk 0:01:26]}  h3 {[%clk 0:04:35]} 69. Kg1 {[%clk 0:01:26]}  Kg6 {[%clk 0:04:35]} 70. Kh2 {[%clk 0:01:26]}  Kf5 {[%clk 0:04:35]} 71. Bd8 {[%clk 0:01:26]}  Ke5 {[%clk 0:04:35]} 1/2-1/2


[Site "http://www.Chess.com"]

[Event "FIDE World Rapid Chess Championship 2021"]
[White "Halkias, Stelios"]
[Black "Sindarov, Javokhir"]
[WhiteFideId "4201809"]
[BlackFideId "14205483"]
[WhiteElo "2576"]
[BlackElo "2353"]
[Result "1/2-1/2"]
[Round "13"]
[TimeControl "900+10"]
[Date "2021.12.28"]
[WhiteClock "0:00:17"]
[BlackClock "0:00:35"]

1. Nf3 {[%clk 0:15:00]}  g6 {[%clk 0:15:00]} 2. d4 {[%clk 0:15:13]}  Nf6 {[%clk 0:15:16]} 3. g3 {[%clk 0:15:13]}  c5 {[%clk 0:15:16]} 4. c3 {[%clk 0:15:13]}  Bg7 {[%clk 0:15:16]} 5. Bg2 {[%clk 0:15:13]}  O-O {[%clk 0:15:16]} 6. O-O {[%clk 0:15:13]}  d6 {[%clk 0:13:43]} 7. dxc5 {[%clk 0:14:47]}  dxc5 {[%clk 0:12:55]} 8. Qxd8 {[%clk 0:14:47]}  Rxd8 {[%clk 0:12:55]} 9. Na3 {[%clk 0:14:47]}  Bf5 {[%clk 0:12:55]} 10. Be3 {[%clk 0:14:47]}  Nbd7 {[%clk 0:12:09]} 11. Rad1 {[%clk 0:11:36]}  Be4 {[%clk 0:12:09]} 12. Ng5 {[%clk 0:11:36]}  Bxg2 {[%clk 0:12:09]} 13. Kxg2 {[%clk 0:11:36]}  Kf8 {[%clk 0:10:49]} 14. h3 {[%clk 0:10:34]}  b6 {[%clk 0:10:47]} 15. Nc4 {[%clk 0:10:34]}  Ke8 {[%clk 0:10:47]} 16. Rd3 {[%clk 0:10:34]}  Nf8 {[%clk 0:10:47]} 17. Ne5 {[%clk 0:10:34]}  Rxd3 {[%clk 0:10:47]} 18. exd3 {[%clk 0:10:34]}  N6d7 {[%clk 0:10:47]} 19. Nc6 {[%clk 0:10:34]}  Ne5 {[%clk 0:10:47]} 20. Nxe5 {[%clk 0:10:34]}  Bxe5 {[%clk 0:10:47]} 21. Re1 {[%clk 0:10:34]}  Bg7 {[%clk 0:10:47]} 22. Kf1 {[%clk 0:10:34]}  Rd8 {[%clk 0:10:47]} 23. Ke2 {[%clk 0:10:34]}  Nd7 {[%clk 0:10:47]} 24. f4 {[%clk 0:04:28]}  Nf6 {[%clk 0:05:27]} 25. Ne4 {[%clk 0:04:28]}  Nd5 {[%clk 0:05:27]} 26. a4 {[%clk 0:04:28]}  Kd7 {[%clk 0:05:27]} 27. Ng5 {[%clk 0:04:28]}  f6 {[%clk 0:05:27]} 28. Nf3 {[%clk 0:04:28]}  f5 {[%clk 0:04:44]} 29. Bd2 {[%clk 0:04:03]}  e6 {[%clk 0:04:44]} 30. Kd1 {[%clk 0:04:03]}  Nc7 {[%clk 0:04:44]} 31. Kc2 {[%clk 0:03:59]}  Ke7 {[%clk 0:02:34]} 32. g4 {[%clk 0:03:59]}  Bf6 {[%clk 0:02:34]} 33. Rg1 {[%clk 0:03:59]}  Kf7 {[%clk 0:02:34]} 34. Rg2 {[%clk 0:03:59]}  Nd5 {[%clk 0:02:34]} 35. Rg1 {[%clk 0:03:59]}  Rc8 {[%clk 0:01:53]} 36. Kb3 {[%clk 0:02:59]}  Ne7 {[%clk 0:01:53]} 37. Be1 {[%clk 0:02:59]}  Nc6 {[%clk 0:01:53]} 38. Bh4 {[%clk 0:02:59]}  c4+ {[%clk 0:01:53]} 39. Kc2 {[%clk 0:01:40]}  cxd3+ {[%clk 0:01:22]} 40. Kxd3 {[%clk 0:01:40]}  Bxh4 {[%clk 0:01:22]} 41. Nxh4 {[%clk 0:01:40]}  Ne7 {[%clk 0:01:22]} 42. c4 {[%clk 0:01:40]}  Nc6 {[%clk 0:01:22]} 43. Nf3 {[%clk 0:01:40]}  Nb4+ {[%clk 0:01:22]} 44. Ke3 {[%clk 0:01:40]}  Rd8 {[%clk 0:00:54]} 45. Ne5+ {[%clk 0:01:13]}  Kf6 {[%clk 0:00:54]} 46. g5+ {[%clk 0:01:13]}  Ke7 {[%clk 0:00:54]} 47. Rg2 {[%clk 0:01:13]}  a5 {[%clk 0:00:54]} 48. h4 {[%clk 0:01:13]}  Rd1 {[%clk 0:00:54]} 49. h5 {[%clk 0:01:13]}  gxh5 {[%clk 0:00:54]} 50. Rh2 {[%clk 0:01:13]}  Re1+ {[%clk 0:00:54]} 51. Kf2 {[%clk 0:00:32]}  Re4 {[%clk 0:00:37]} 52. Rxh5 {[%clk 0:00:32]}  Rxf4+ {[%clk 0:00:37]} 53. Kg3 {[%clk 0:00:32]}  Re4 {[%clk 0:00:37]} 54. Rxh7+ {[%clk 0:00:32]}  Kd6 {[%clk 0:00:37]} 55. Nf7+ {[%clk 0:00:32]}  Ke7 {[%clk 0:00:37]} 56. Nh6+ {[%clk 0:00:32]}  Kd6 {[%clk 0:00:37]} 57. g6 {[%clk 0:00:32]}  Re3+ {[%clk 0:00:37]} 58. Kh4 {[%clk 0:00:32]}  Nc6 {[%clk 0:00:37]} 59. g7 {[%clk 0:00:32]}  Ne7 {[%clk 0:00:37]} 60. Kg5 {[%clk 0:00:32]}  Rg3+ {[%clk 0:00:44]} 61. Kf6 {[%clk 0:00:45]}  f4 {[%clk 0:00:44]} 62. Nf7+ {[%clk 0:00:45]}  Kd7 {[%clk 0:00:44]} 63. Ne5+ {[%clk 0:00:45]}  Kd6 {[%clk 0:00:44]} 64. Nf7+ {[%clk 0:00:45]}  Kd7 {[%clk 0:00:44]} 65. Ne5+ {[%clk 0:00:45]}  Kd6 {[%clk 0:00:44]} 66. Rh8 {[%clk 0:00:45]}  f3 {[%clk 0:00:44]} 67. Rd8+ {[%clk 0:00:45]}  Kc7 {[%clk 0:00:44]} 68. Rd7+ {[%clk 0:00:45]}  Kc8 {[%clk 0:00:44]} 69. Rd1 {[%clk 0:00:45]}  Ng8+ {[%clk 0:00:44]} 70. Kf7 {[%clk 0:00:45]}  Nh6+ {[%clk 0:00:44]} 71. Kf8 {[%clk 0:00:45]}  Rg5 {[%clk 0:00:44]} 72. Nc6 {[%clk 0:00:45]}  e5 {[%clk 0:01:19]} 73. Rd6 {[%clk 0:00:43]}  f2 {[%clk 0:01:19]} 74. Ne7+ {[%clk 0:00:43]}  Kb7 {[%clk 0:01:19]} 75. Rf6 {[%clk 0:00:43]}  Ng4 {[%clk 0:01:19]} 76. Rf7 {[%clk 0:00:43]}  Kb8 {[%clk 0:01:19]} 77. Nc6+ {[%clk 0:00:43]}  Kc8 {[%clk 0:01:19]} 78. Na7+ {[%clk 0:00:43]}  Kb8 {[%clk 0:01:19]} 79. Nc6+ {[%clk 0:00:17]}  Kc8 {[%clk 0:00:35]} 80. Na7+ {[%clk 0:00:17]}  Kb8 {[%clk 0:00:35]} 81. Nc6+ {[%clk 0:00:17]}  Kc8 {[%clk 0:00:35]} 82. Re7 {[%clk 0:00:17]}  Rf5+ {[%clk 0:00:35]} 83. Ke8 {[%clk 0:00:17]} 1/2-1/2


[Site "http://www.Chess.com"]

[Event "FIDE World Rapid Chess Championship 2021"]
[White "Ter-Sahakyan, Samvel"]
[Black "Muradli, Mahammad"]
[WhiteFideId "13302531"]
[BlackFideId "13409301"]
[WhiteElo "2573"]
[BlackElo "2285"]
[Result "1/2-1/2"]
[Round "13"]
[TimeControl "900+10"]
[Date "2021.12.28"]
[WhiteClock "0:00:28"]
[BlackClock "0:00:16"]

1. e4 {[%clk 0:15:00]}  c5 {[%clk 0:15:00]} 2. Nf3 {[%clk 0:15:00]}  d6 {[%clk 0:15:00]} 3. Bb5+ {[%clk 0:15:00]}  Bd7 {[%clk 0:15:00]} 4. Bxd7+ {[%clk 0:15:00]}  Nxd7 {[%clk 0:15:00]} 5. O-O {[%clk 0:15:00]}  Ngf6 {[%clk 0:15:00]} 6. Re1 {[%clk 0:15:48]}  e6 {[%clk 0:16:20]} 7. c3 {[%clk 0:15:48]}  Be7 {[%clk 0:16:20]} 8. d4 {[%clk 0:15:48]}  O-O {[%clk 0:16:20]} 9. Nbd2 {[%clk 0:15:48]}  Rc8 {[%clk 0:16:20]} 10. Nf1 {[%clk 0:15:48]}  cxd4 {[%clk 0:15:57]} 11. cxd4 {[%clk 0:15:00]}  d5 {[%clk 0:15:57]} 12. e5 {[%clk 0:15:00]}  Ne4 {[%clk 0:15:57]} 13. Ng3 {[%clk 0:15:00]}  f5 {[%clk 0:15:57]} 14. exf6 {[%clk 0:15:00]}  Ndxf6 {[%clk 0:15:57]} 15. Be3 {[%clk 0:15:21]}  Qb6 {[%clk 0:12:24]} 16. Re2 {[%clk 0:12:40]}  Ng4 {[%clk 0:12:29]} 17. Qd3 {[%clk 0:12:14]}  Qc6 {[%clk 0:10:09]} 18. h3 {[%clk 0:12:14]}  Nxg3 {[%clk 0:10:08]} 19. fxg3 {[%clk 0:09:43]}  Nf6 {[%clk 0:10:08]} 20. Bg5 {[%clk 0:09:43]}  Rfe8 {[%clk 0:10:08]} 21. Bxf6 {[%clk 0:09:43]}  Bxf6 {[%clk 0:10:08]} 22. g4 {[%clk 0:09:28]}  Qc4 {[%clk 0:08:31]} 23. Qe3 {[%clk 0:09:28]}  h6 {[%clk 0:08:31]} 24. h4 {[%clk 0:09:28]}  e5 {[%clk 0:08:31]} 25. dxe5 {[%clk 0:08:59]}  Bd8 {[%clk 0:07:03]} 26. Kh1 {[%clk 0:05:55]}  Bb6 {[%clk 0:07:41]} 27. Qd2 {[%clk 0:05:55]}  Rcd8 {[%clk 0:07:41]} 28. e6 {[%clk 0:05:55]}  Qxg4 {[%clk 0:07:24]} 29. e7 {[%clk 0:03:52]}  Rd6 {[%clk 0:07:24]} 30. Rae1 {[%clk 0:03:52]}  Kh8 {[%clk 0:07:24]} 31. Re5 {[%clk 0:03:52]}  Qd7 {[%clk 0:02:34]} 32. Qd3 {[%clk 0:03:34]}  Ba5 {[%clk 0:02:34]} 33. R1e2 {[%clk 0:02:02]}  Kg8 {[%clk 0:01:51]} 34. a3 {[%clk 0:02:02]}  Bc7 {[%clk 0:01:51]} 35. b4 {[%clk 0:02:02]}  Rc6 {[%clk 0:01:51]} 36. Qxd5+ {[%clk 0:02:02]}  Qxd5 {[%clk 0:01:51]} 37. Rxd5 {[%clk 0:02:02]}  Rc1+ {[%clk 0:01:51]} 38. Re1 {[%clk 0:00:48]}  Rxe1+ {[%clk 0:01:37]} 39. Nxe1 {[%clk 0:00:48]}  Rxe7 {[%clk 0:01:37]} 40. Nf3 {[%clk 0:00:48]}  Re3 {[%clk 0:01:37]} 41. a4 {[%clk 0:00:48]}  Ra3 {[%clk 0:01:37]} 42. Kg1 {[%clk 0:00:48]}  Rxa4 {[%clk 0:01:37]} 43. b5 {[%clk 0:00:48]}  Bg3 {[%clk 0:01:37]} 44. Rd8+ {[%clk 0:00:48]}  Kh7 {[%clk 0:01:37]} 45. Kf1 {[%clk 0:00:48]}  Bxh4 {[%clk 0:01:37]} 46. Rd7 {[%clk 0:00:18]}  b6 {[%clk 0:02:09]} 47. Nd4 {[%clk 0:00:18]}  Bf6 {[%clk 0:02:09]} 48. Nc6 {[%clk 0:00:18]}  a6 {[%clk 0:02:09]} 49. bxa6 {[%clk 0:00:18]}  Rxa6 {[%clk 0:02:09]} 50. Rb7 {[%clk 0:00:18]}  Ra1+ {[%clk 0:02:09]} 51. Ke2 {[%clk 0:00:18]}  Ra2+ {[%clk 0:02:09]} 52. Kf3 {[%clk 0:00:18]}  Rb2 {[%clk 0:02:09]} 53. Nb8 {[%clk 0:00:18]}  b5 {[%clk 0:02:09]} 54. Nd7 {[%clk 0:00:18]}  Kg6 {[%clk 0:02:09]} 55. Nc5 {[%clk 0:00:18]}  Rb1 {[%clk 0:02:09]} 56. Ne6 {[%clk 0:00:18]}  h5 {[%clk 0:02:09]} 57. Nf4+ {[%clk 0:00:25]}  Kg5 {[%clk 0:02:40]} 58. Ne6+ {[%clk 0:00:25]}  Kh6 {[%clk 0:02:40]} 59. Rb8 {[%clk 0:00:25]}  Kg6 {[%clk 0:02:40]} 60. Rb6 {[%clk 0:00:25]}  Kf5 {[%clk 0:02:40]} 61. Nc7 {[%clk 0:00:25]}  Rb3+ {[%clk 0:02:40]} 62. Ke2 {[%clk 0:00:25]}  b4 {[%clk 0:02:40]} 63. Nd5 {[%clk 0:00:25]}  Rb2+ {[%clk 0:02:40]} 64. Kf3 {[%clk 0:00:25]}  b3 {[%clk 0:02:40]} 65. Rb5 {[%clk 0:00:38]}  Ke5 {[%clk 0:01:38]} 66. Nxf6+ {[%clk 0:00:38]}  Kxf6 {[%clk 0:01:38]} 67. Rxh5 {[%clk 0:00:38]}  g5 {[%clk 0:01:38]} 68. Rh6+ {[%clk 0:00:38]}  Ke5 {[%clk 0:01:38]} 69. Rg6 {[%clk 0:00:38]}  Ra2 {[%clk 0:00:12]} 70. Rb6 {[%clk 0:00:27]}  Ra3 {[%clk 0:00:12]} 71. Kg4 {[%clk 0:00:27]}  Kd4 {[%clk 0:00:12]} 72. Kxg5 {[%clk 0:00:27]}  Kc4 {[%clk 0:00:12]} 73. Kf6 {[%clk 0:00:27]}  Ra4 {[%clk 0:00:12]} 74. g4 {[%clk 0:00:27]}  Rb4 {[%clk 0:00:12]} 75. Re6 {[%clk 0:00:27]}  Kd5 {[%clk 0:00:12]} 76. Re5+ {[%clk 0:00:27]}  Kd4 {[%clk 0:00:12]} 77. Re1 {[%clk 0:00:27]}  Rb6+ {[%clk 0:00:12]} 78. Kf7 {[%clk 0:00:27]}  Rb5 {[%clk 0:00:16]} 79. Kf6 {[%clk 0:00:28]}  b2 {[%clk 0:00:16]} 80. g5 {[%clk 0:00:28]}  b1=Q {[%clk 0:00:16]} 81. Rxb1 {[%clk 0:00:28]}  Rxb1 {[%clk 0:00:16]} 82. g6 {[%clk 0:00:28]}  Rb6+ {[%clk 0:00:16]} 83. Kf5 {[%clk 0:00:28]}  Rxg6 {[%clk 0:00:16]} 84. Kxg6 {[%clk 0:00:28]}  Ke5 {[%clk 0:00:16]} 1/2-1/2


[Site "http://www.Chess.com"]

[Event "FIDE World Rapid Chess Championship 2021"]
[White "Corrales Jimenez, Fidel"]
[Black "Sankalp, Gupta"]
[WhiteFideId "3506690"]
[BlackFideId "5097010"]
[WhiteElo "2561"]
[BlackElo "2266"]
[Result "0-1"]
[Round "13"]
[TimeControl "900+10"]
[Date "2021.12.28"]
[WhiteClock "0:01:41"]
[BlackClock "0:01:40"]

1. e4 {[%clk 0:15:00]}  e5 {[%clk 0:15:00]} 2. Nf3 {[%clk 0:15:00]}  Nf6 {[%clk 0:15:00]} 3. Nxe5 {[%clk 0:15:00]}  d6 {[%clk 0:15:00]} 4. Nf3 {[%clk 0:15:00]}  Nxe4 {[%clk 0:15:00]} 5. Nc3 {[%clk 0:15:00]}  Nxc3 {[%clk 0:15:00]} 6. dxc3 {[%clk 0:15:00]}  Be7 {[%clk 0:15:00]} 7. Be3 {[%clk 0:16:13]}  O-O {[%clk 0:16:25]} 8. Qd2 {[%clk 0:16:13]}  Nd7 {[%clk 0:16:25]} 9. O-O-O {[%clk 0:16:13]}  Nf6 {[%clk 0:16:25]} 10. h4 {[%clk 0:16:13]}  d5 {[%clk 0:16:25]} 11. Bd3 {[%clk 0:16:13]}  c5 {[%clk 0:16:25]} 12. c4 {[%clk 0:16:13]}  d4 {[%clk 0:14:13]} 13. Bf4 {[%clk 0:16:12]}  Re8 {[%clk 0:14:13]} 14. Ng5 {[%clk 0:16:12]}  Bf8 {[%clk 0:14:13]} 15. Rde1 {[%clk 0:16:12]}  Rxe1+ {[%clk 0:14:13]} 16. Rxe1 {[%clk 0:16:12]}  h6 {[%clk 0:12:26]} 17. Qe2 {[%clk 0:16:11]}  hxg5 {[%clk 0:12:26]} 18. hxg5 {[%clk 0:16:11]}  Ng4 {[%clk 0:12:26]} 19. g6 {[%clk 0:15:53]}  Qf6 {[%clk 0:10:54]} 20. gxf7+ {[%clk 0:13:58]}  Qxf7 {[%clk 0:09:51]} 21. Qe4 {[%clk 0:13:58]}  Nf6 {[%clk 0:09:51]} 22. Qe5 {[%clk 0:13:58]}  Bd7 {[%clk 0:09:51]} 23. Rh1 {[%clk 0:13:58]}  Qe6 {[%clk 0:09:51]} 24. Qc7 {[%clk 0:13:58]}  Bc6 {[%clk 0:09:51]} 25. f3 {[%clk 0:13:58]}  Rc8 {[%clk 0:09:51]} 26. Qa5 {[%clk 0:13:58]}  a6 {[%clk 0:09:51]} 27. Qd2 {[%clk 0:13:58]}  b5 {[%clk 0:09:51]} 28. b3 {[%clk 0:13:58]}  bxc4 {[%clk 0:09:51]} 29. bxc4 {[%clk 0:13:58]}  Bd6 {[%clk 0:09:51]} 30. Bg5 {[%clk 0:13:58]}  Bg3 {[%clk 0:09:51]} 31. Kb2 {[%clk 0:13:58]}  Re8 {[%clk 0:09:51]} 32. Qa5 {[%clk 0:13:58]}  Be1 {[%clk 0:09:51]} 33. Qxc5 {[%clk 0:09:21]}  Bc3+ {[%clk 0:03:30]} 34. Kb1 {[%clk 0:09:21]}  Qc8 {[%clk 0:03:30]} 35. Qa3 {[%clk 0:08:19]}  Qc7 {[%clk 0:02:54]} 36. c5 {[%clk 0:02:49]}  Rb8+ {[%clk 0:02:11]} 37. Kc1 {[%clk 0:02:49]}  Bb2+ {[%clk 0:02:11]} 38. Qxb2 {[%clk 0:02:49]}  Rxb2 {[%clk 0:02:11]} 39. Kxb2 {[%clk 0:02:49]}  Bd5 {[%clk 0:02:11]} 40. Re1 {[%clk 0:01:41]}  Qxc5 {[%clk 0:01:40]} 41. Re5 {[%clk 0:01:41]}  Qb4+ {[%clk 0:01:40]} 42. Kc1 {[%clk 0:01:41]}  Bxa2 {[%clk 0:01:40]} 43. Bd2 {[%clk 0:01:41]}  Qb1# {[%clk 0:01:40]} 0-1


[Site "http://www.Chess.com"]

[Event "FIDE World Rapid Chess Championship 2021"]
[White "Theodorou, Nikolas"]
[Black "Suleymanli, Aydin"]
[WhiteFideId "4262875"]
[BlackFideId "13413937"]
[WhiteElo "2559"]
[BlackElo "2202"]
[Result "1-0"]
[Round "13"]
[TimeControl "900+10"]
[Date "2021.12.28"]
[WhiteClock "0:03:37"]
[BlackClock "0:03:55"]

1. d4 {[%clk 0:15:00]}  Nf6 {[%clk 0:15:00]} 2. c4 {[%clk 0:15:00]}  e6 {[%clk 0:15:00]} 3. g3 {[%clk 0:15:52]}  d5 {[%clk 0:15:44]} 4. Bg2 {[%clk 0:15:52]}  Be7 {[%clk 0:15:44]} 5. Nf3 {[%clk 0:15:52]}  O-O {[%clk 0:15:44]} 6. O-O {[%clk 0:15:52]}  dxc4 {[%clk 0:15:44]} 7. Qc2 {[%clk 0:15:52]}  b6 {[%clk 0:15:44]} 8. Nfd2 {[%clk 0:15:52]}  Nd5 {[%clk 0:15:44]} 9. Nxc4 {[%clk 0:15:52]}  Ba6 {[%clk 0:14:51]} 10. Rd1 {[%clk 0:14:49]}  Nc6 {[%clk 0:14:51]} 11. a3 {[%clk 0:14:35]}  f5 {[%clk 0:12:43]} 12. Ne3 {[%clk 0:13:35]}  Na5 {[%clk 0:08:00]} 13. b4 {[%clk 0:12:48]}  Nxe3 {[%clk 0:07:15]} 14. fxe3 {[%clk 0:12:48]}  Nc4 {[%clk 0:06:58]} 15. Qa4 {[%clk 0:09:53]}  Bg5 {[%clk 0:06:58]} 16. Qxa6 {[%clk 0:09:53]}  Nxe3 {[%clk 0:06:58]} 17. Bxe3 {[%clk 0:09:29]}  Bxe3+ {[%clk 0:05:00]} 18. Kh1 {[%clk 0:09:29]}  f4 {[%clk 0:05:00]} 19. Qd3 {[%clk 0:09:29]}  Rc8 {[%clk 0:05:00]} 20. Nc3 {[%clk 0:09:29]}  Qg5 {[%clk 0:05:00]} 21. Ne4 {[%clk 0:07:48]}  Qh6 {[%clk 0:04:34]} 22. Rf1 {[%clk 0:06:58]}  fxg3 {[%clk 0:04:40]} 23. Nxg3 {[%clk 0:06:58]}  Rfd8 {[%clk 0:04:40]} 24. d5 {[%clk 0:03:37]}  c6 {[%clk 0:03:55]} 25. d6 {[%clk 0:03:37]}  Bf4 {[%clk 0:03:55]} 26. d7 {[%clk 0:03:37]}  Rc7 {[%clk 0:03:55]} 27. Qf3 {[%clk 0:03:37]}  g5 {[%clk 0:03:55]} 28. e3 {[%clk 0:03:37]} 1-0


[Site "http://www.Chess.com"]